fUST/lending_fUST_20240824
["ID","MTS","AMOUNT","RATE_DAILY","PERIOD"]
[335735824,1724470240631,-1113.22,0.00013698,2]
[335735825,1724470240641,-1113.22,0.00013698,2]
[335735826,1724470240651,-500.0,0.00013698,2]
[335735827,1724470240661,-1113.22,0.00013698,2]
[335735828,1724470240671,-1113.22,0.00013698,2]
[335735829,1724470240682,-1113.22,0.00013698,2]
[335735830,1724470240691,-1113.22,0.00013698,2]
[335735831,1724470240702,-1113.22,0.00013698,2]
[335735832,1724470240712,-1113.41815425,0.00013698,2]
[335735833,1724470240724,-500.0,0.00013698,2]
[335735834,1724470240734,-500.0,0.00013698,2]
[335735837,1724470240745,-500.0,0.00013698,2]
[335735838,1724470240755,-500.0,0.00013698,2]
[335735841,1724470240765,-500.0,0.00013698,2]
[335735843,1724470240776,-500.0,0.00013698,2]
[335735845,1724470240788,-500.0,0.00013698,2]
[335735847,1724470240798,-500.0,0.00013698,2]
[335735849,1724470240809,-500.0,0.00013698,2]
[335735851,1724470240818,-509.18196234,0.00013698,2]
[335735853,1724470240827,-500.0,0.00013698,2]
[335735855,1724470240839,-576.46,0.00013698,2]
[335735858,1724470240850,-500.0,0.00013698,2]
[335735860,1724470240860,-500.0,0.00013698,2]
[335735862,1724470240871,-500.0,0.00013698,2]
[335735864,1724470240882,-3439.97,0.00013698,2]
[335735866,1724470240893,-916.81,0.00013698,2]
[335735868,1724470240903,-500.0,0.00013698,2]
[335735870,1724470240913,-500.0,0.00013698,2]
[335735873,1724470240924,-559.99,0.00013698,2]
[335735875,1724470240935,-500.0,0.00013698,2]
[335735878,1724470240946,-500.0,0.00013698,2]
[335735882,1724470240956,-581.01,0.00013698,2]
[335735884,1724470240966,-566.06,0.00013698,2]
[335735886,1724470240976,-502.86105163,0.00013698,2]
[335735888,1724470240985,-500.0,0.00013698,2]
[335735890,1724470240994,-500.0,0.00013698,2]
[335735892,1724470241003,-500.0,0.00013698,2]
[335735894,1724470241012,-500.0,0.00013698,2]
[335735896,1724470241023,-501.11720891,0.00013698,2]
[335735898,1724470241034,-500.0,0.00013698,2]
[335735901,1724470241044,-253.09911784,0.00013698,2]
[335735903,1724470241054,-427.47475264,0.00013698,2]
[335735905,1724470241067,-500.0,0.00013698,2]
[335735907,1724470241078,-500.0,0.00013698,2]
[335735909,1724470241086,-500.0,0.00013698,2]
[335735911,1724470241096,-500.0,0.00013698,2]
[335735913,1724470241104,-1135.22,0.00013698,2]
[335735915,1724470241114,-155.12815248,0.00013698,2]
[335735917,1724470241123,-500.0,0.00013698,2]
[335735919,1724470241133,-887.15,0.00013698,2]
[335735921,1724470241144,-500.0,0.00013698,2]
[335735923,1724470241154,-258.8,0.00013698,2]
[335735925,1724470241164,-755.69,0.00013698,2]
[335735927,1724470241174,-258.0,0.00013698,2]
[335735929,1724470241184,-500.0,0.00013698,2]
[335735931,1724470241194,-500.0,0.00013698,2]
[335735934,1724470241206,-576.51,0.00013698,2]
[335735936,1724470241215,-537.96,0.00013698,2]
[335735938,1724470241225,-500.0,0.00013698,2]
[335735940,1724470241235,-500.0,0.00013698,2]
[335735942,1724470241246,-500.0,0.00013698,2]
[335735944,1724470241255,-500.0,0.00013698,2]
[335735946,1724470241265,-500.0,0.00013698,2]
[335735948,1724470241274,-500.0,0.00013698,2]
[335735950,1724470241283,-500.0,0.00013698,2]
[335735952,1724470241292,-260.0,0.00013698,2]
[335735954,1724470241302,-500.0,0.00013698,2]
[335735956,1724470241313,-259.66926664,0.00013698,2]
[335735958,1724470241323,-500.0,0.00013698,2]
[335735961,1724470241332,-525.97,0.00013698,2]
[335735963,1724470241341,-500.0,0.00013698,2]
[335735965,1724470241350,-500.0,0.00013698,2]
[335735967,1724470241360,-681.7,0.00013698,2]
[335735969,1724470241370,-500.0,0.00013698,2]
[335735971,1724470241379,-513.22,0.00013698,2]
[335735973,1724470241388,-500.0,0.00013698,2]
[335735975,1724470241397,-500.0,0.00013698,2]
[335735977,1724470241407,-500.0,0.00013698,2]
[335735979,1724470241416,-500.0,0.00013698,2]
[335735981,1724470241425,-500.0,0.00013698,2]
[335735983,1724470241435,-500.0,0.00013698,2]
[335735985,1724470241444,-388.01515087,0.00013698,2]
[335735987,1724470241453,-500.0,0.00013698,2]
[335735989,1724470241463,-500.0,0.00013698,2]
[335735991,1724470241473,-626.86,0.00013698,2]
[335735994,1724470241484,-152.55072533,0.00013698,2]
[335735996,1724470241496,-500.0,0.00013698,2]
[335735998,1724470241507,-500.0,0.00013698,2]
[335736000,1724470241519,-500.0,0.00013698,2]
[335736003,1724470241531,-500.0,0.00013698,2]
[335736005,1724470241541,-218.35635125,0.00013698,2]
[335736007,1724470241554,-500.0,0.00013698,2]
[335736009,1724470241566,-500.0,0.00013698,2]
[335736011,1724470241575,-755.36,0.00013698,2]
[335736013,1724470241585,-500.0,0.00013698,2]
[335736016,1724470241596,-500.0,0.00013698,2]
[335736018,1724470241609,-500.0,0.00013698,2]
[335736020,1724470241619,-500.0,0.00013698,2]
[335736022,1724470241631,-500.0,0.00013698,2]
[335736024,1724470241642,-500.0,0.00013698,2]
[335736027,1724470241653,-500.0,0.00013698,2]
[335736028,1724470241662,-500.0,0.00013698,2]
[335736030,1724470241671,-524.10641745,0.00013698,2]
[335736032,1724470241681,-719.97,0.00013698,2]
[335736034,1724470241690,-500.0,0.00013698,2]
[335736036,1724470241699,-500.0,0.00013698,2]
[335736038,1724470241708,-500.0,0.00013698,2]
[335736040,1724470241717,-500.0,0.00013698,2]
[335736042,1724470241728,-500.0,0.00013698,2]
[335736044,1724470241739,-500.0,0.00013698,2]
[335736047,1724470241750,-500.0,0.00013698,2]
[335736049,1724470241760,-500.0,0.00013698,2]
[335736051,1724470241769,-500.0,0.00013698,2]
[335736053,1724470241779,-690.57,0.00013698,2]
[335736055,1724470241788,-500.0,0.00013698,2]
[335736057,1724470241797,-500.0,0.00013698,2]
[335736059,1724470241806,-165.12163908,0.00013698,2]
[335736061,1724470241816,-500.0,0.00013698,2]
[335736063,1724470241825,-500.18172759,0.00013698,2]
[335736065,1724470241834,-500.0,0.00013698,2]
[335736067,1724470241843,-500.0,0.00013698,2]
[335736069,1724470241852,-500.0,0.00013698,2]
[335736070,1724470241861,-500.64056354,0.00013698,2]
[335736072,1724470241870,-474.29123879,0.00013698,2]
[335736074,1724470241880,-500.0,0.00013698,2]
[335736076,1724470241889,-500.0,0.00013698,2]
[335736078,1724470241898,-500.0,0.00013698,2]
[335736080,1724470241907,-500.0,0.00013698,2]
[335736082,1724470241917,-500.85815529,0.00013698,2]
[335736084,1724470241926,-580.44,0.00013698,2]
[335736086,1724470241935,-500.0,0.00013698,2]
[335736088,1724470241945,-500.0,0.00013698,2]
[335736090,1724470241954,-858.32,0.00013698,2]
[335736092,1724470241964,-501.5733447,0.00013698,2]
[335736094,1724470241973,-1644.94,0.00013698,2]
[335736095,1724470241982,-500.0,0.00013698,2]
[335736097,1724470241992,-430.44001007,0.00013698,2]
[335736099,1724470242002,-500.0,0.00013698,2]
[335736101,1724470242011,-500.0,0.00013698,2]
[335736103,1724470242021,-451.39342568,0.00013698,2]
[335736106,1724470242032,-500.0,0.00013698,2]
[335736108,1724470242041,-500.0,0.00013698,2]
[335736110,1724470242051,-500.0,0.00013698,2]
[335736112,1724470242061,-500.0,0.00013698,2]
[335736114,1724470242070,-500.0,0.00013698,2]
[335736116,1724470242079,-3161.46,0.00013698,2]
[335736118,1724470242088,-500.0,0.00013698,2]
[335736120,1724470242098,-500.0,0.00013698,2]
[335736122,1724470242107,-963.71,0.00013698,2]
[335736124,1724470242116,-963.71,0.00013698,2]
[335736127,1724470242126,-963.71,0.00013698,2]
[335736129,1724470242148,-500.0,0.00013698,2]
[335736131,1724470242158,-500.0,0.00013698,2]
[335736133,1724470242167,-963.71,0.00013698,2]
[335736159,1724470242398,-963.71,0.00013698,2]
[335736161,1724470242412,-963.71,0.00013698,2]
[335736163,1724470242423,-963.71,0.00013698,2]
[335736165,1724470242434,-963.71,0.00013698,2]
[335736167,1724470242445,-963.71,0.00013698,2]
[335736169,1724470242456,-963.71,0.00013698,2]
[335736171,1724470242467,-963.71,0.00013698,2]
[335736173,1724470242478,-520.92,0.00013698,2]
[335736175,1724470242489,-963.71,0.00013698,2]
[335736178,1724470242499,-963.71,0.00013698,2]
[335736180,1724470242510,-963.71,0.00013698,2]
[335736182,1724470242522,-963.71,0.00013698,2]
[335736184,1724470242533,-963.71,0.00013698,2]
[335736186,1724470242543,-963.71,0.00013698,2]
[335736188,1724470242553,-963.71,0.00013698,2]
[335736190,1724470242564,-963.71,0.00013698,2]
[335736192,1724470242574,-963.71,0.00013698,2]
[335736194,1724470242583,-963.71,0.00013698,2]
[335736196,1724470242594,-963.71,0.00013698,2]
[335736199,1724470242605,-604.11,0.00013698,2]
[335736201,1724470242617,-963.71,0.00013698,2]
[335736203,1724470242628,-963.72454486,0.00013698,2]
[335736205,1724470242639,-500.0,0.00013698,2]
[335736207,1724470242650,-500.0,0.00013698,2]
[335736209,1724470242661,-443.15499385,0.00013698,2]
[335736212,1724470242675,-500.0,0.00013698,2]
[335736214,1724470242685,-500.0,0.00013698,2]
[335736216,1724470242694,-524.03413021,0.00013698,2]
[335736218,1724470242703,-500.0,0.00013698,2]
[335736220,1724470242713,-500.0,0.00013698,2]
[335736222,1724470242724,-500.0,0.00013698,2]
[335736224,1724470242734,-503.11997067,0.00013698,2]
[335736226,1724470242743,-1050.46,0.00013698,2]
[335736228,1724470242753,-316.24143331,0.00013698,2]
[335736230,1724470242763,-500.0,0.00013698,2]
[335736232,1724470242772,-500.0,0.00013698,2]
[335736234,1724470242782,-500.0,0.00013698,2]
[335736236,1724470242793,-500.0,0.00013698,2]
[335736238,1724470242804,-500.0,0.00013698,2]
[335736241,1724470242814,-841.52,0.00013698,2]
[335736243,1724470242823,-500.0,0.00013698,2]
[335736245,1724470242834,-500.0,0.00013698,2]
[335736247,1724470242843,-500.0,0.00013698,2]
[335736249,1724470242852,-1033.27,0.00013698,2]
[335736251,1724470242863,-748.81,0.00013698,2]
[335736253,1724470242873,-500.0,0.00013698,2]
[335736255,1724470242885,-500.0,0.00013698,2]
[335736258,1724470242896,-500.0,0.00013698,2]
[335736260,1724470242908,-500.0,0.00013698,2]
[335736262,1724470242920,-536.7811588,0.00013698,2]
[335736265,1724470242932,-2428.93,0.00013698,2]
[335736268,1724470242942,-500.0,0.00013698,2]
[335736270,1724470242952,-868.71,0.00013698,2]
[335736272,1724470242962,-500.0,0.00013698,2]
[335736274,1724470242971,-500.0,0.00013698,2]
[335736276,1724470242981,-1022.16,0.00013698,2]
[335736278,1724470242990,-1354.1,0.00013698,2]
[335736280,1724470243000,-592.37,0.00013698,2]
[335736282,1724470243010,-500.0,0.00013698,2]
[335736284,1724470243019,-523.95976346,0.00013698,2]
[335736286,1724470243029,-1155.01,0.00013698,2]
[335736288,1724470243039,-521.09788376,0.00013698,2]
[335736290,1724470243048,-605.11,0.00013698,2]
[335736292,1724470243060,-718.41,0.00013698,2]
[335736295,1724470243078,-500.0,0.00013698,2]
[335736297,1724470243087,-500.0,0.00013698,2]
[335736299,1724470243096,-812.75,0.00013698,2]
[335736301,1724470243106,-641.28,0.00013698,2]
[335736303,1724470243116,-929.14,0.00013698,2]
[335736305,1724470243126,-500.80362181,0.00013698,2]
[335736307,1724470243136,-500.0,0.00013698,2]
[335736309,1724470243145,-500.0,0.00013698,2]
[335736311,1724470243155,-500.0,0.00013698,2]
[335736313,1724470243165,-506.51205124,0.00013698,2]
[335736315,1724470243175,-500.0,0.00013698,2]
[335736317,1724470243185,-934.92,0.00013698,2]
[335736319,1724470243194,-666.0,0.00013698,2]
[335736321,1724470243204,-1274.21,0.00013698,2]
[335736323,1724470243214,-722.24,0.00013698,2]
[335736325,1724470243225,-509.19,0.00013698,2]
[335736327,1724470243235,-500.0,0.00013698,2]
[335736330,1724470243245,-500.0,0.00013698,2]
[335736332,1724470243255,-500.0,0.00013698,2]
[335736334,1724470243265,-5152.98,0.00013698,2]
[335736336,1724470243275,-451.02923329,0.00013698,2]
[335736338,1724470243286,-1023.12,0.00013698,2]
[335736340,1724470243299,-500.0,0.00013698,2]
[335736343,1724470243314,-500.0,0.00013698,2]
[335736345,1724470243326,-968.66,0.00013698,2]
[335736347,1724470243337,-500.0,0.00013698,2]
[335736349,1724470243347,-500.0,0.00013698,2]
[335736351,1724470243358,-528.3863952,0.00013698,2]
[335736354,1724470243368,-500.9895342,0.00013698,2]
[335736356,1724470243378,-1049.11,0.00013698,2]
[335736358,1724470243389,-500.0,0.00013698,2]
[335736360,1724470243400,-500.0,0.00013698,2]
[335736362,1724470243411,-500.0,0.00013698,2]
[335736364,1724470243422,-500.0,0.00013698,2]
[335736367,1724470243433,-525.62,0.00013698,2]
[335736369,1724470243442,-500.0,0.00013698,2]
[335736371,1724470243452,-500.0,0.00013698,2]
[335736373,1724470243462,-513.99772868,0.00013698,2]
[335736375,1724470243471,-500.0,0.00013698,2]
[335736377,1724470243481,-500.0,0.00013698,2]
[335736379,1724470243491,-500.0,0.00013698,2]
[335736381,1724470243500,-177.59616055,0.00013698,2]
[335736383,1724470243510,-566.86701025,0.00013698,2]
[335736384,1724470243522,-2715.97,0.00013698,2]
[335736385,1724470243532,-500.0,0.00013698,2]
[335736386,1724470243542,-500.0,0.00013698,2]
[335736388,1724470243552,-500.0,0.00013698,2]
[335736389,1724470243562,-557.14,0.00013698,2]
[335736390,1724470243573,-500.0,0.00013698,2]
[335736391,1724470243584,-500.0,0.00013698,2]
[335736392,1724470243595,-500.0,0.00013698,2]
[335736393,1724470243606,-500.11097897,0.00013698,2]
[335736394,1724470243617,-500.0,0.00013698,2]
[335736395,1724470243627,-1520.92,0.00013698,2]
[335736397,1724470243638,-586.3,0.00013698,2]
[335736399,1724470243648,-560.92,0.00013698,2]
[335736401,1724470243658,-2195.66,0.00013698,2]
[335736403,1724470243668,-500.0,0.00013698,2]
[335736405,1724470243677,-524.40759916,0.00013698,2]
[335736407,1724470243687,-500.0,0.00013698,2]
[335736409,1724470243697,-500.0,0.00013698,2]
[335736411,1724470243707,-500.0,0.00013698,2]
[335736413,1724470243718,-500.0,0.00013698,2]
[335736415,1724470243727,-763.37,0.00013698,2]
[335736417,1724470243737,-1359.87,0.00013698,2]
[335736419,1724470243747,-500.0,0.00013698,2]
[335736422,1724470243757,-930.78,0.00013698,2]
[335736424,1724470243767,-987.1,0.00013698,2]
[335736426,1724470243777,-869.19,0.00013698,2]
[335736427,1724470243786,-500.0,0.00013698,2]
[335736430,1724470243796,-500.0,0.00013698,2]
[335736432,1724470243806,-500.0,0.00013698,2]
[335736434,1724470243815,-500.0,0.00013698,2]
[335736436,1724470243825,-500.0,0.00013698,2]
[335736438,1724470243835,-500.0,0.00013698,2]
[335736440,1724470243844,-2601.23,0.00013698,2]
[335736442,1724470243854,-964.84,0.00013698,2]
[335736444,1724470243865,-1117.25,0.00013698,2]
[335736446,1724470243875,-500.0,0.00013698,2]
[335736448,1724470243885,-548.48,0.00013698,2]
[335736450,1724470243895,-500.77864388,0.00013698,2]
[335736452,1724470243905,-500.0,0.00013698,2]
[335736454,1724470243917,-634.98,0.00013698,2]
[335736456,1724470243928,-500.0,0.00013698,2]
[335736458,1724470243937,-509.55102606,0.00013698,2]
[335736460,1724470243948,-500.0,0.00013698,2]
[335736462,1724470243958,-1045.64,0.00013698,2]
[335736464,1724470243969,-500.0,0.00013698,2]
[335736466,1724470243979,-846.73,0.00013698,2]
[335736468,1724470243988,-500.0,0.00013698,2]
[335736470,1724470243998,-500.0,0.00013698,2]
[335736472,1724470244008,-500.0,0.00013698,2]
[335736474,1724470244018,-1530.72,0.00013698,2]
[335736476,1724470244027,-500.0,0.00013698,2]
[335736479,1724470244037,-500.0,0.00013698,2]
[335736481,1724470244047,-500.0,0.00013698,2]
[335736482,1724470244057,-500.0,0.00013698,2]
[335736485,1724470244067,-500.0,0.00013698,2]
[335736487,1724470244076,-500.0,0.00013698,2]
[335736489,1724470244086,-4822.73,0.00013698,2]
[335736491,1724470244096,-500.0,0.00013698,2]
[335736493,1724470244106,-500.0,0.00013698,2]
[335736495,1724470244116,-500.0,0.00013698,2]
[335736497,1724470244125,-500.0,0.00013698,2]
[335736499,1724470244135,-193.80537047,0.00013698,2]
[335736501,1724470244145,-1321.08,0.00013698,2]
[335736503,1724470244155,-500.0,0.00013698,2]
[335736505,1724470244164,-500.0,0.00013698,2]
[335736508,1724470244174,-500.0,0.00013698,2]
[335736510,1724470244196,-500.0,0.00013698,2]
[335736512,1724470244206,-953.8,0.00013698,2]
[335736514,1724470244216,-500.0,0.00013698,2]
[335736516,1724470244226,-500.0,0.00013698,2]
[335736518,1724470244236,-500.0,0.00013698,2]
[335736521,1724470244247,-561.74,0.00013698,2]
[335736523,1724470244257,-500.0,0.00013698,2]
[335736525,1724470244267,-1254.01,0.00013698,2]
[335736527,1724470244277,-1303.58,0.00013698,2]
[335736529,1724470244287,-1259.89,0.00013698,2]
[335736531,1724470244297,-500.0,0.00013698,2]
[335736533,1724470244307,-500.0,0.00013698,2]
[335736535,1724470244320,-3829.32,0.00013698,2]
[335736537,1724470244330,-1412.04,0.00013698,2]
[335736540,1724470244341,-535.39,0.00013698,2]
[335736542,1724470244351,-500.0,0.00013698,2]
[335736544,1724470244361,-500.0,0.00013698,2]
[335736546,1724470244370,-293.91923949,0.00013698,2]
[335736548,1724470244380,-500.0,0.00013698,2]
[335736550,1724470244390,-6753.19,0.00013698,2]
[335736552,1724470244400,-500.0,0.00013698,2]
[335736554,1724470244409,-500.0,0.00013698,2]
[335736556,1724470244419,-907.21,0.00013698,2]
[335736558,1724470244429,-500.0,0.00013698,2]
[335736560,1724470244438,-500.0,0.00013698,2]
[335736562,1724470244448,-500.0,0.00013698,2]
[335736564,1724470244458,-500.607898,0.00013698,2]
[335736566,1724470244467,-500.0,0.00013698,2]
[335736568,1724470244477,-615.94,0.00013698,2]
[335736570,1724470244486,-500.0,0.00013698,2]
[335736572,1724470244496,-500.0,0.00013698,2]
[335736574,1724470244505,-500.0,0.00013698,2]
[335736576,1724470244516,-500.0,0.00013698,2]
[335736578,1724470244528,-447.60060409,0.00013698,2]
[335736580,1724470244538,-509.13136748,0.00013698,2]
[335736582,1724470244547,-675.71,0.00013698,2]
[335736585,1724470244557,-787.22,0.00013698,2]
[335736587,1724470244569,-575.68528405,0.00013698,2]
[335736589,1724470244579,-500.0,0.00013698,2]
[335736591,1724470244588,-500.0,0.00013698,2]
[335736593,1724470244599,-542.60168054,0.00013698,2]
[335736595,1724470244609,-980.48,0.00013698,2]
[335736597,1724470244618,-1593.9,0.00013698,2]
[335736599,1724470244629,-9524.51,0.00013698,2]
[335736601,1724470244638,-978.69,0.00013698,2]
[335736603,1724470244648,-1421.72,0.00013698,2]
[335736605,1724470244657,-21954.93,0.00013698,2]
[335736607,1724470244667,-766.62,0.00013698,2]
[335736609,1724470244676,-1457.5163,0.00013698,2]
[335736611,1724470244686,-500.0,0.00013698,2]
[335736613,1724470244695,-653.3,0.00013698,2]
[335736615,1724470244704,-500.0,0.00013698,2]
[335736617,1724470244714,-500.0,0.00013698,2]
[335736619,1724470244724,-1457.5163,0.00013698,2]
[335736621,1724470244733,-883.29,0.00013698,2]
[335736623,1724470244742,-1114.9,0.00013698,2]
[335736625,1724470244752,-500.0,0.00013698,2]
[335736627,1724470244762,-2032.72,0.00013698,2]
[335736629,1724470244771,-500.0,0.00013698,2]
[335736631,1724470244781,-500.0,0.00013698,2]
[335736634,1724470244794,-865.98,0.00013698,2]
[335736636,1724470244804,-3238.93,0.00013698,2]
[335736638,1724470244815,-500.0,0.00013698,2]
[335736640,1724470244825,-1181.75,0.00013698,2]
[335736642,1724470244837,-500.0,0.00013698,2]
[335736645,1724470244848,-500.0,0.00013698,2]
[335736647,1724470244858,-4940.0,0.00013698,2]
[335736649,1724470244868,-500.0,0.00013698,2]
[335736651,1724470244877,-500.0,0.00013698,2]
[335736653,1724470244886,-500.0,0.00013698,2]
[335736655,1724470244896,-760.06,0.00013698,2]
[335736657,1724470244905,-983.62,0.00013698,2]
[335736659,1724470244915,-500.0,0.00013698,2]
[335736661,1724470244925,-599.98714986,0.00013698,2]
[335736663,1724470244935,-896.1,0.00013698,2]
[335736665,1724470244945,-500.0,0.00013698,2]
[335736667,1724470244956,-500.0,0.00013698,2]
[335736670,1724470244968,-500.0,0.00013698,2]
[335736672,1724470244977,-1477.46,0.00013698,2]
[335736674,1724470244987,-886.51,0.00013698,2]
[335736676,1724470244997,-500.97197037,0.00013698,2]
[335736678,1724470245007,-500.0,0.00013698,2]
[335736680,1724470245018,-500.0,0.00013698,2]
[335736682,1724470245028,-500.0,0.00013698,2]
[335736685,1724470245039,-500.0,0.00013698,2]
[335736687,1724470245049,-500.0,0.00013698,2]
[335736689,1724470245059,-500.0,0.00013698,2]
[335736691,1724470245069,-500.0,0.00013698,2]
[335736693,1724470245080,-500.0,0.00013698,2]
[335736695,1724470245089,-5556.42,0.00013698,2]
[335736697,1724470245099,-500.0,0.00013698,2]
[335736699,1724470245109,-500.0,0.00013698,2]
[335736701,1724470245118,-500.0,0.00013698,2]
[335736703,1724470245128,-500.0,0.00013698,2]
[335736705,1724470245137,-503.05914512,0.00013698,2]
[335736707,1724470245147,-500.0,0.00013698,2]
[335736709,1724470245157,-561.11,0.00013698,2]
[335736711,1724470245167,-691.07,0.00013698,2]
[335736713,1724470245176,-772.08,0.00013698,2]
[335736716,1724470245186,-500.0,0.00013698,2]
[335736718,1724470245195,-500.0,0.00013698,2]
[335736720,1724470245205,-500.0,0.00013698,2]
[335736722,1724470245215,-616.7,0.00013698,2]
[335736724,1724470245224,-2073.62,0.00013698,2]
[335736726,1724470245235,-501.81230016,0.00013698,2]
[335736728,1724470245248,-500.0,0.00013698,2]
[335736730,1724470245258,-1079.2,0.00013698,2]
[335736732,1724470245268,-2349.32,0.00013698,2]
[335736735,1724470245277,-1500.2,0.00013698,2]
[335736737,1724470245287,-500.41907596,0.00013698,2]
[335736739,1724470245296,-500.0,0.00013698,2]
[335736741,1724470245306,-500.0,0.00013698,2]
[335736743,1724470245316,-500.0,0.00013698,2]
[335736745,1724470245326,-500.0,0.00013698,2]
[335736747,1724470245335,-500.0,0.00013698,2]
[335736749,1724470245345,-500.0,0.00013698,2]
[335736751,1724470245354,-684.22,0.00013698,2]
[335736753,1724470245363,-1254.81,0.00013698,2]
[335736755,1724470245375,-511.23922017,0.00013698,2]
[335736757,1724470245384,-500.0,0.00013698,2]
[335736759,1724470245394,-900.28,0.00013698,2]
[335736762,1724470245404,-1704.93,0.00013698,2]
[335736764,1724470245414,-500.0,0.00013698,2]
[335736766,1724470245424,-504.04700606,0.00013698,2]
[335736768,1724470245434,-500.0,0.00013698,2]
[335736770,1724470245443,-500.0,0.00013698,2]
[335736772,1724470245453,-1109.15,0.00013698,2]
[335736774,1724470245462,-718.74,0.00013698,2]
[335736776,1724470245472,-14076.01,0.00013698,2]
[335736778,1724470245482,-501.11184243,0.00013698,2]
[335736780,1724470245491,-2016.11,0.00013698,2]
[335736782,1724470245501,-500.0,0.00013698,2]
[335736785,1724470245511,-500.0,0.00013698,2]
[335736787,1724470245522,-500.55269522,0.00013698,2]
[335736789,1724470245532,-661.83,0.00013698,2]
[335736791,1724470245542,-500.0,0.00013698,2]
[335736793,1724470245552,-500.0,0.00013698,2]
[335736795,1724470245563,-315.43926399,0.00013698,2]
[335736797,1724470245572,-500.0,0.00013698,2]
[335736799,1724470245582,-2263.7,0.00013698,2]
[335736801,1724470245592,-500.0,0.00013698,2]
[335736803,1724470245603,-500.0,0.00013698,2]
[335736805,1724470245613,-1524.26,0.00013698,2]
[335736807,1724470245622,-500.0,0.00013698,2]
[335736809,1724470245631,-940.06,0.00013698,2]
[335736811,1724470245641,-500.0,0.00013698,2]
[335736813,1724470245651,-500.0,0.00013698,2]
[335736815,1724470245661,-500.0,0.00013698,2]
[335736818,1724470245671,-500.0,0.00013698,2]
[335736820,1724470245681,-500.0,0.00013698,2]
[335736822,1724470245691,-3642.48,0.00013698,2]
[335736824,1724470245700,-2417.02,0.00013698,2]
[335736826,1724470245710,-2142.23,0.00013698,2]
[335736828,1724470245719,-500.0,0.00013698,2]
[335736830,1724470245728,-500.0,0.00013698,2]
[335736832,1724470245738,-500.0,0.00013698,2]
[335736834,1724470245748,-500.0,0.00013698,2]
[335736836,1724470245757,-500.0,0.00013698,2]
[335736838,1724470245767,-500.0,0.00013698,2]
[335736840,1724470245777,-500.0,0.00013698,2]
[335736842,1724470245788,-500.0,0.00013698,2]
[335736844,1724470245797,-706.7,0.00013698,2]
[335736846,1724470245807,-3165.38,0.00013698,2]
[335736849,1724470245818,-7341.2,0.00013698,2]
[335736851,1724470245828,-500.0,0.00013698,2]
[335736853,1724470245840,-500.0,0.00013698,2]
[335736855,1724470245851,-500.0,0.00013698,2]
[335736857,1724470245861,-516.71,0.00013698,2]
[335736859,1724470245871,-1618.54,0.00013698,2]
[335736862,1724470245881,-500.0,0.00013698,2]
[335736864,1724470245893,-2527.31,0.00013698,2]
[335736866,1724470245905,-500.0,0.00013698,2]
[335736868,1724470245916,-500.0,0.00013698,2]